Cogmind - Beta 14 @@@ ROGUE MODE // 2024.11.22 @ 21:03:57 Player: Inverisimilidude Result: Destroyed by as-14973 with Assembled Maul Performance ------------- Evolutions (0) 0 Regions Visited (2) 400 Robots Destroyed (7) 35 Value Destroyed (133) 133 Prototype IDs (1) 20 Alien Tech Used (0) 0 Bonus (35) 35 TOTAL SCORE: 623 Bonus ------- Follower Combat Kills 35 Cogmind --------- Core Integrity 0/250 Matter 300/300 Energy 100/100 System Corruption 0% Temperature Cool (0) Movement Core (50) Location -10/Mines Parts ------- > --- POWER (1) -------- (None) > --- PROPULSION (2) --- (None) > --- UTILITY (2) ------ (None) > --- WEAPON (2) ------- (None) > --- INVENTORY (5) ---- Aluminum Leg Aluminum Leg Wheel Large Storage Unit Compact Matter Pod (150) Peak State ------------ > --- POWER ------------ Ion Engine > --- PROPULSION ------- Aluminum Leg Aluminum Leg > --- UTILITY ---------- Medium Storage Unit Splice Drone Bay > --- WEAPON ----------- Assault Rifle Light Assault Rifle > --- INVENTORY -------- Light Ion Engine Light Treads Light Treads Aluminum Leg Aluminum Leg Wheel Wheel Large Storage Unit Compact Matter Pod Mining Laser [Rating: 14] Favorites ----------- Power Ion Engine Engine Ion Engine Propulsion Aluminum Leg Leg Aluminum Leg Utility Medium Storage Unit Device Splice Drone Bay Storage Medium Storage Unit Weapon Light Assault Rifle Energy Gun Small Laser Ballistic Gun Light Assault Rifle Build | -11 -10 -10 ------- Run | Yrd Mat Min Slots Evolved . | . . . Power . | . . . Propulsion . | . . . Utility . | . . . Weapon . | . . . Parts Attached 14 | 5 6 3 Power 2 | 1 . 1 Engine 2 | 1 . 1 Core . | . . . Reactor . | . . . Propulsion 4 | 2 1 1 Treads . | . . . Leg 4 | 2 1 1 Wheel . | . . . Hover . | . . . Flight . | . . . Utility 3 | 1 1 1 Device 1 | . . 1 Storage 2 | 1 1 . Processor . | . . . Hackware . | . . . Protection . | . . . Artifact . | . . . Weapon 5 | 1 4 . Energy Gun 2 | . 2 . Energy Cannon . | . . . Ballistic Gun 3 | 1 2 . Ballistic Cannon . | . . . Launcher . | . . . Special Weapon . | . . . Impact Weapon . | . . . Slashing Weapon . | . . . Piercing Weapon . | . . . Special Melee Weapon . | . . . Unidentified Prototypes 1 | . . 1 Parts Lost 8 | . 1 7 Power 2 | . . 2 Propulsion 2 | . . 2 Utility 1 | . . 1 Weapon 3 | . 1 2 Highest Loss Streak 7 | . 1 7 To Critical Strikes . | . . . Average Slot Usage (%) 84 | . 83 85 Engine 13 | . 14 13 Leg 27 | . 28 26 Device 2 | . . 4 Storage 13 | . 14 13 Energy Gun 5 | . 12 . Ballistic Gun 21 | . 14 26 Peak Build Rating 14 | 5 7 14 Average Rating 7 | 3 6 8 On Entrance 3 | . 5 6 Naked Turns 24 | . . 24 Heaviest Build 26 | 11 18 26 Greatest Support 20 | 20 20 20 Greatest Overweight (x) 4 | 1 . 4 Average Overweight (x) . | . . . Largest Inventory Capacity 10 | 8 10 10 Average Capacity 9 | 7 9 9 Most Carried 10 | 7 10 10 Average Carried 8 | 5 7 9 Final Capacity 10 | 8 10 5 Final Carried 9 | 7 9 5 Class Distribution -------------------- 100% | Mutant Dominant Class ---------------- Mutant | -10/Materials Mutant | -10/Mines Resources | -11 -10 -10 ----------- Run | Yrd Mat Min Matter Collected 360 | 219 102 39 Remotely . | . . . Salvage Created 194 | . 149 45 Parts 12 | . 11 1 Haulers Intercepted . | . . . Recyclers Shooed . | . . . Parts Field Recycled . | . . . Retrieved Matter . | . . . Parts Self-Destructed . | . . . Prevented . | . . . Kills | -11 -10 -10 ------- Run | Yrd Mat Min Combat Hostiles Destroyed 6 | . 5 1 Guns 6 | . 5 1 Classes Destroyed 3 | . 3 . Worker 1 | . 1 . Swarmer 3 | . 3 . Grunt 3 | . 2 1 Best Kill Streak 5 | . 5 1 Combat Bots Only 4 | . 4 1 Max Kills in Single Turn 1 | . 1 1 Gunslinging . | . . . Exploded . | . . . Melee . | . . . Uniques/NPCs Destroyed . | . . . Combat | -11 -10 -10 -------- Run | Yrd Mat Min Hostile Shots Fired 68 | . 41 27 Missed 11 | . 8 3 Damage Taken 1105 | . 323 782 Core 259 | . 42 217 Absorbed by Shields . | . . . Core Remaining (%) 100 | 100 . . Volleys Fired 29 | . 27 2 Largest 2 | . 2 2 Hottest 70 | . 70 40 Shots Fired 54 | . 50 4 Gun 54 | . 50 4 Cannon . | . . . Launcher . | . . . Special . | . . . Kinetic 31 | . 27 4 Thermal 23 | . 23 . Explosive . | . . . Electromagnetic . | . . . Robot Hit Streak 8 | . 8 3 Robot Miss Streak 5 | . 5 3 Penetration Max . | . . . Secondary Targets . | . . . Shots Hit Robots 30 | . 27 3 Core Hits 11 | . 8 3 Critical Kills . | . . . Critical Parts Destroyed . | . . . Critical Strikes . | . . . Melee Attacks . | . . . Impact . | . . . Slashing . | . . . Piercing . | . . . Sneak Attacks . | . . . Combat Hostiles . | . . . Follow-up Attacks . | . . . Damage Inflicted 317 | . 269 48 Guns 310 | . 269 41 Cannons . | . . . Explosions . | . . . Melee . | . . . Ramming 7 | . . 7 Kinetic 190 | . 149 41 Thermal 120 | . 120 . Explosive . | . . . Electromagnetic . | . . . Impact . | . . . Slashing . | . . . Piercing . | . . . Highest Corruption . | . . . Average Corruption . | . . . Corruption Purged . | . . . Corruption Blocked . | . . . Overload Shots . | . . . Overflow Damage . | . . . Projectiles . | . . . Explosions . | . . . Melee . | . . . Knockbacks . | . . . Impact . | . . . Kinetic . | . . . Secondary . | . . . Self-Inflicted Damage 3 | . . 3 Shots . | . . . Rammed 3 | . . 3 Targets Rammed 3 | . . 3 Kicked . | . . . Crushed . | . . . Highest Temperature 108 | . 108 12 Average Temperature 41 | . 42 9 Received Heat Transfer 160 | . 108 52 Siege Activations . | . . . Robots Corrupted . | . . . Combat Hostiles . | . . . Parts Fried . | . . . Impact Corruptions . | . . . Robots Melted . | . . . Combat Hostiles . | . . . Parts Melted 1 | . 1 . Heat Transferred 299 | . 299 . Parts Sabotaged . | . . . Parts Stolen . | . . . Parts Stripped . | . . . Power Chain Reactions . | . . . Alert | -11 -10 -10 ------- Run | Yrd Mat Min Peak Influence 175 | . 175 60 Initial . | . . . Average 48 | . 72 37 Maximum Alert Level . | . . . Low Security (%) 100 | 100 100 100 Level 1 . | . . . Level 2 . | . . . Level 3 . | . . . Level 4 . | . . . Level 5 . | . . . High Security . | . . . Max Security . | . . . Squads Dispatched 2 | . 2 . Investigation . | . . . Extermination . | . . . Reinforcement 2 | . 2 . Assault . | . . . Garrison . | . . . Intercept . | . . . Searches Triggered . | . . . Construction Impeded . | . . . Haulers Reinforced . | . . . Active Scanning Responses . | . . . Cargo Convoy Interrupts . | . . . Stealth | -11 -10 -10 --------- Run | Yrd Mat Min Distress Signals . | . . . Communications Jammed . | . . . Distress Signals . | . . . Times Spotted 21 | . 7 14 Peak Tracking Total 8 | . 4 8 Tactical Retreats 1 | . 1 . Traps | -11 -10 -10 ------- Run | Yrd Mat Min Traps Triggered . | . . . Indirectly . | . . . Trap Hack Attempts . | . . . Triggered . | . . . Disarmed . | . . . Reprogrammed . | . . . Reused . | . . . Traps Extracted . | . . . Installed . | . . . Triggered . | . . . Machines | -11 -10 -10 ---------- Run | Yrd Mat Min Machines Disabled . | . . . Max in Single Turn . | . . . Machines Repaired . | . . . Machines Dismantled . | . . . Machines Sabotaged . | . . . Overloaded Fab Kills . | . . . Hacking | -11 -10 -10 --------- Run | Yrd Mat Min Machines Accessed 2 | . . 2 Terminals 1 | . . 1 Fabricators . | . . . Repair Stations . | . . . Recycling Units . | . . . Scanalyzers . | . . . Garrison Access . | . . . Total Hacks 2 | . . 2 Successful 2 | . . 2 Failed . | . . . Catastrophic . | . . . Database Lockouts . | . . . Manual . | . . . Terminals 1 | . . 1 Fabricators . | . . . Repair Stations . | . . . Recycling Units . | . . . Scanalyzers . | . . . Garrison Access . | . . . Terminal Hacks 2 | . . 2 Open Door 1 | . . 1 Dispatch Records 1 | . . 1 Fabricator Hacks . | . . . Repair Station Hacks . | . . . Recycling Unit Hacks . | . . . Scanalyzer . | . . . Garrison Access Hacks . | . . . Unauthorized Hacks . | . . . Terminals . | . . . Fabricators . | . . . Repair Stations . | . . . Recycling Units . | . . . Scanalyzers . | . . . Garrison Access . | . . . Data Cores Recovered . | . . . Used . | . . . Hacking Detections . | . . . Full Trace Events . | . . . Feedback Events . | . . . Feedback Blocked . | . . . Robot Schematics Acquired . | . . . Robots Built . | . . . Authchips . | . . . Time . | . . . Total Robot Build Rating . | . . . Part Schematics Acquired . | . . . Parts Built . | . . . Authchips . | . . . Time . | . . . Total Part Build Rating . | . . . Parts Repaired . | . . . Time . | . . . Parts Recycled . | . . . Recycled Matter . | . . . Retrieved Matter . | . . . Retrieved Components . | . . . Parts Scanalyzed . | . . . Part Schematics Acquired . | . . . Parts Damaged . | . . . Bothacking | -11 -10 -10 ------------ Run | Yrd Mat Min Used RIF Installer . | . . . Robots Hacked . | . . . Non-combat . | . . . Combat . | . . . Robot Hacks Applied . | . . . Relay Couplers Released . | . . . Fabnet Peak Effective % . | . . . Robots Rewired . | . . . Allies Hacked . | . . . Hacks Repelled . | . . . Allies | -11 -10 -10 -------- Run | Yrd Mat Min Total Allies 3 | . . 3 Largest Group 3 | . . 3 Highest-Rated Group 73 | . . 73 Highest-Rated Ally 31 | . . 31 Total Orders . | . . . Ally Attacks 5 | . . 5 Total Damage 84 | . . 84 Kills 1 | . . 1 Allies Corrupted . | . . . Allies Melted . | . . . Intel | -11 -10 -10 ------- Run | Yrd Mat Min Robot Analysis Total . | . . . Derelict Logs Recovered 1 | . . 1 Drone Launches . | . . . Drone Recoveries . | . . . Exploration | -11 -10 -10 ------------- Run | Yrd Mat Min Turns Passed 975 | 78 406 491 Spaces Moved 668 | 39 267 362 Core 52 | 8 . 44 Treads . | . . . Legs 616 | 31 267 318 Wheels . | . . . Hover . | . . . Flight . | . . . Fastest Speed 50 | 50 120 50 Average Speed 125 | 128 120 129 Slowest Speed 260 | 190 120 260 Overloaded Moves . | . . . Propulsion Burnouts . | . . . Robots Hopped . | . . . Cave-ins Triggered . | . . . Exploration Rate (%) 35 | 5 26 76 Regions Visited 2 Branch Regions 1 Pre-discovered Areas . | . . . Known Exits Taken . | . . . Unknown Exits Taken 2 | 1 1 . Scrap Searched . | . . . Spaces Dug . | . . . Terrain Destroyed . | . . . Melee . | . . . Projectile . | . . . AOE . | . . . Terrain Rammed . | . . . Walls Destroyed . | . . . Machines Disabled . | . . . Actions | -11 -10 -10 --------- Run | Yrd Mat Min Total 757 | 64 309 384 Wait 20 | 14 2 4 Move 666 | 38 266 362 Hop . | . . . Pick Up 16 | 7 4 5 Fast Attach 7 | 5 1 1 Attach 4 | . 3 1 Detach 1 | . 1 . Swap 3 | . 2 1 Drop 8 | . 3 5 Fire 29 | . 27 2 Melee . | . . . Ram 3 | . . 3 Kick . | . . . Crush . | . . . Escape Stasis . | . . . Rewire . | . . . Trap . | . . . Miscellaneous . | . . . Route ------- -11/Scrapyard -10/Materials -10/Mines (discovered 2 exits: *Mat x2) History --------- Turn | Location | Event 33 | -11/Scrapyard | Discovered new exit (range 15) 79 | -11/Scrapyard | Entered Materials 311 | -10/Materials | Build established: Mutant 452 | -10/Materials | Discovered new exit (range 13) 485 | -10/Materials | Entered Mines 513 | -10/Mines | Discovered new exit (range 8) 529 | -10/Mines | Received a Mining Laser from a helpful Derelict 650 | -10/Mines | Identified exit to Materials 761 | -10/Mines | Found the Drone Emporium 774 | -10/Mines | Found Prototype Device 774 | -10/Mines | Identified Splice Drone Bay 825 | -10/Mines | Received a Rocket Launcher from a helpful Derelict 889 | -10/Mines | A weapon hastily lodged in a ceiling crevice suddenly fell to the ground 905 | -10/Mines | Assembled infested the area 952 | -10/Mines | Released all parts (1) 953 | -10/Mines | Core integrity fell below 50% 976 | -10/Mines | Core integrity fell below 20% 976 | -10/Mines | Destroyed by as-14973 with Assembled Maul Last Messages --------------- 00935_ A1-R2S(z) destroyed. 00937_ Acquired 10 matter. 00940_ as-44884 destroyed. 00940_ as-00686 destroyed. 00940_ as-61505 destroyed. 00940_ Ion Engine destroyed. 00941_ as-07908 destroyed. 00942_ Lgt. Assault Rifle destroyed. 00943_ Aluminum Leg destroyed. 00947_ The unstable cave ceiling collapses. 00947_ Splice Drone Bay destroyed. 00948_ Aluminum Leg destroyed. 00949_ The unstable cave ceiling collapses. 00950_ Lgt. Ion Engine destroyed. 00952_ Assault Rifle destroyed. 00952_ Released Med. Storage Unit. 00953_ The unstable cave ceiling collapses. 00973_ Knocked back. 00974_ Slammed into as-32540. 00976_ Slammed into as-90995. Map ----- +----------------------------------------------------+ | #???????## ##???????# #??## ##??????? | | #?????#############??# #???# ###????#### | | ##????##""## #??# < #???# #???#### # | | #####?????#" # #??# #???# #??## | | ??????????#" #??#### ###???# #?## | | ????###???#" #?????# #?##### ### | | ???## #??#" #X #???### #?# | | ???# ####""## #??## ### ##### ### | | ???# ####### #?## #???# ##?## | | ???# #????#### #### ###???## ##???? | | ???# ##??????# ####???# #????? | | ??## ######## ### ^ #???## ####### | | ?## #?## #^ #????###T | | ?# ####### #??## # # ^ #??????## | | ?# #?????# #??# # ^ # ######### | | ?# #????? #?# # ##^# | | ?## ##????# """ #?# # ^ ########## | | ??## ##?????# """ #?# ########????????# | | ???## #??##### """ ?# #???????????????### ## | | ##### #??# ##????????????????# #? | | ## ##??# !#????????????????# #? | | ## ##???# ###### = #????????????????# #? | | # ## ##???## ##?????? ##???????????????# #? | | # # #???## ###????? = ##??????????????# ? | | # # ##?## ###### % #??????????????? #? | | # ### a%@a*%= #??????????????? #? | | # aaaa ##??????????????? ? | | ### =< ##???????????????? ? | | d d #?## ##????????????????? ? | | #### ##??### #?????????????????? ? | | ##??## ##?????? #??????????????????#?? | | ## #????# #???????%#????????????????????? | | ### ##????# #????????#????????????????????? | | ######????# #?????????????????????????????? | | #???????# ##?????????????????????????????? | | #??????? ## #??????????????????????????????? | | ##?????? #?# #??????????????????????????????? | | #??????? ??# ??????????????????????????????? | | #??????? ??###??????????????????????????????? | | #??????? ????????????????????????????????????? | | "##??????###????????????????????????????????????? | | % #?????????????????????????????????????????????? | | #?????????????????????????????????????????????? | | #?????????????????????????????????????????????? | | #?????????????????????????????????????????????? | | #?????????????????????????????????????????????? | | ????????????????????????????????????????????? | | ??????????????????????????????????????????? | | " =????????????????????????????????????????? | | % ???????????????????????????????????????? | +----------------------------------------------------+ Best States ------------- Heat Dissipation 25 Energy Generation 10 Energy Capacity 250 Matter Stores 300 Matter Capacity 300 Sight Range 16 Terrain Scan Density 10 Evasion (%) 55 Item Schematics ----------------- None Robot Schematics ------------------ None Fabricated ------------ Nothing Alien Tech Used ----------------- None Achievements -------------- None Challenges ------------ None Game ------ Seed TachyonHardenedAirjet Manual? 0 Play Time 00:34:23 Cumulative 36.0 hours Start 2024.11.22 @ 06:16:30 End 2024.11.22 @ 21:03:57 Sessions 2 Manual Loads 0 Difficulty Rogue Special Mode None Game No. 44 Rogue 44 Adventurer 0 Explorer 0 Win Type - Total 0 Types 0/0/0/0/0/0/0/0/0 Lore% 20 Gallery% 29 Achievement% 27 Wizard Run 0 Options --------- Layout 1 ASCII 0 Keyboard 1 Movement Arrows Keybinds 0 Fullscreen 1 Font 24/Smallcaps Map View 50x35 Zoom Use 0% Tactical HUD 1 Map Filters NONE Filters NONE Steam 1 RUN: 9a756ffc-7f61-4c4c-ae26-2572366f7d3b